[Event "Turkish Second League 2019"]
[Site "Konya"]
[Date "2019.07.25"]
[Round "5"]
[White "Abdimanoglu, Beste Basak"]
[Black "Kara, Gulce Nehir"]
[Result "0-1"]
[ECO "D35"]
[WhiteElo "1898"]
[BlackElo "1767"]
[Annotator "NA"]
[PlyCount "104"]
[EventDate "2019.07.22"]
[EventType "team-tourn"]
[EventCountry "TUR"]
[SourceTitle "playchess.com"]
[Source "ChessBase"]
[SourceQuality "1"]
[TimeControl "5400+30"]

1. d4 {[%emt 0:00:30]} d5 {[%emt 0:00:30]} 2. c4 {[%emt 0:00:00]} e6 {[%emt 0:00:30]} 3. Nc3 {[%emt 0:00:00]} Nf6 {[%emt 0:00:00]} 4. cxd5 {[%emt 0:00:30]} exd5 {[%emt 0:01:00]} 5. Bg5 {[%emt 0:00:00]} c6 {[%emt 0:04:30]} 6. e3 {[%emt 0:00:00]} Bf5 {[%emt 0:07:30]} 7. g4 {[%emt 0:11:30]} Bd7 {[%emt 0:07:30]} 8. h3 {[%emt 0:03:30]} Bd6 {[%emt 0:10:30]} 9. Nge2 {[%emt 0:19:30]} h6 {[%emt 0:11:30]} 10. Bh4 {[%emt 0:01:30]} Na6 {[%emt 0:06:30]} 11. Bg2 {[%emt 0:04:30]} Qc7 {[%emt 0:11:30]} 12. Qd2 {[%emt 0:13:30]} g5 {[%emt 0:07:30]} 13. Bg3 {[%emt 0:01:30]} O-O-O {[%emt 0:01:30]} 14. Rc1 {[%emt 0:03:30]} Bxg3 {[%emt 0:05:30]} 15. Nxg3 {[%emt 0:00:30]} Qd6 {[%emt 0:01:30]} 16. Nb5 {[%emt 0:04:30]} Qe7 {[%emt 0:00:30]} 17. Nc3 {[%emt 0:10:30]} Kb8 {[%emt 0:01:58]} 18. a3 {[%emt 0:00:30]} h5 {[%emt 0:01:26]} 19. gxh5 {[%emt 0:08:26]} Nxh5 {[%emt 0:00:16]} 20. Nxh5 {[%emt 0:02:12]} Rxh5 {[%emt 0:00:05]} 21. Ne2 {[%emt 0:00:20]} Rdh8 {[%emt 0:01:55]} 22. Qc2 {[%emt 0:06:42]} Bxh3 {[%emt 0:04:55]} 23. Rxh3 {[%emt 0:02:07]} Rxh3 {[%emt 0:00:30]} 24. Bxh3 {[%emt 0:00:00]} Rxh3 {[%emt 0:00:00]} 25. Qf5 {[%emt 0:01:00]} Rh1+ {[%emt 0:02:25]} 26. Kd2 {[%emt 0:00:06]} Rxc1 {[%emt 0:00:06]} 27. Kxc1 {[%emt 0:01:34]} Nc7 {[%emt 0:02:02]} 28. Ng1 {[%emt 0:01:51]} Ne8 {[%emt 0:02:11]} 29. Qe5+ {[%emt 0:01:21]} Qxe5 {[%emt 0:00:30]} 30. dxe5 {[%emt 0:00:00]} f6 {[%emt 0:00:32]} 31. Nf3 {[%emt 0:01:57]} g4 {[%emt 0:03:20]} 32. exf6 {[%emt 0:00:12]} Nxf6 {[%emt 0:00:11]} 33. Nh2 {[%emt 0:00:35]} Kc7 {[%emt 0:01:09]} 34. Kd1 {[%emt 0:00:37]} Kd6 {[%emt 0:00:24]} 35. Ke2 {[%emt 0:00:26]} Ke5 {[%emt 0:00:24]} 36. Nf1 {[%emt 0:01:09]} Ne4 {[%emt 0:02:13]} 37. Nh2 {[%emt 0:00:24]} Kf5 {[%emt 0:01:50]} 38. Nf1 {[%emt 0:00:08]} c5 {[%emt 0:00:39]} 39. Nh2 {[%emt 0:00:42]} b5 {[%emt 0:00:43]} 40. Nf1 {[%emt 0:00:27]} a5 {[%emt 0:00:34]} 41. Nh2 {[%emt 0:00:21]} a4 {[%emt 0:01:29]} 42. Nf1 {[%emt 0:00:42]} b4 {[%emt 0:00:36]} 43. Nh2 {[%emt 0:00:47]} Nd6 {[%emt 0:00:36]} 44. Kd3 {[%emt 0:01:13]} bxa3 {[%emt 0:00:46]} 45. bxa3 {[%emt 0:00:01]} Nb5 {[%emt 0:00:00]} 46. Nf1 {[%emt 0:00:18]} c4+ {[%emt 0:00:33]} 47. Kd2 {[%emt 0:00:24]} Nxa3 {[%emt 0:00:09]} 48. Ng3+ {[%emt 0:00:53]} Ke5 {[%emt 0:00:13]} 49. Kc3 {[%emt 0:00:11]} Nb5+ {[%emt 0:01:09]} 50. Kc2 {[%emt 0:00:41]} a3 {[%emt 0:00:29]} 51. Ne2 {[%emt 0:00:21]} Ke4 {[%emt 0:00:22]} 52. Ng1 {[%emt 0:00:46]} c3 {[%emt 0:00:36]} 0-1

[Event "Turkish Second League 2019"]
[Site "Konya"]
[Date "2019.07.25"]
[Round "5"]
[White "Sade, Defne"]
[Black "Ozbek, Busra"]
[Result "1/2-1/2"]
[ECO "B86"]
[WhiteElo "1897"]
[BlackElo "1866"]
[Annotator "NA"]
[PlyCount "89"]
[EventDate "2019.07.22"]
[EventType "team-tourn"]
[EventCountry "TUR"]
[SourceTitle "playchess.com"]
[Source "ChessBase"]
[SourceQuality "1"]
[TimeControl "5400+30"]

1. e4 c5 2. Nf3 d6 3. d4 cxd4 4. Nxd4 Nf6 5. Nc3 a6 6. Bc4 {[%emt 0:01:00]} e6 {[%emt 0:01:00]} 7. a3 Be7 8. Ba2 Nc6 9. O-O O-O 10. h3 Qc7 11. Be3 b5 12. f4 Bb7 13. Qe2 Na5 14. Bf2 Rfd8 15. Rae1 Rac8 16. e5 dxe5 17. fxe5 Nd5 18. Nxd5 Bxd5 19. Bxd5 Rxd5 20. c3 Nc4 21. Bg3 Bc5 22. Qf2 Rf8 23. b4 Ba7 24. Qf4 Qd7 25. Bh4 Bb8 26. Nf3 f6 27. Qg4 Nxe5 28. Nxe5 Bxe5 29. Rd1 Rd8 30. Rde1 Kh8 31. Rf3 Rc8 32. Bg3 Bxg3 33. Qxg3 e5 34. Re4 Rc4 35. Rxe5 Rxe5 36. Qxe5 h6 37. Qb8+ Rc8 38. Qg3 Qd1+ 39. Kh2 Rd8 40. Re3 Rd7 41. Re8+ Kh7 42. Qb8 Qd6+ 43. Qxd6 Rxd6 44. Rc8 Kg6 45. Rc7 1/2-1/2

[Event "Turkish Second League 2019"]
[Site "Konya"]
[Date "2019.07.25"]
[Round "5"]
[White "Ozcoban, Kadir"]
[Black "Dere, Abdullah Dogukan"]
[Result "1/2-1/2"]
[ECO "B27"]
[WhiteElo "1850"]
[BlackElo "1960"]
[Annotator "NA"]
[PlyCount "84"]
[EventDate "2019.07.22"]
[EventType "team-tourn"]
[EventCountry "TUR"]
[SourceTitle "playchess.com"]
[Source "ChessBase"]
[SourceQuality "1"]
[TimeControl "5400+30"]

1. e4 {[%emt 0:00:30]} c5 {[%emt 0:00:30]} 2. Nf3 {[%emt 0:00:30]} g6 {[%emt 0:00:00]} 3. d4 {[%emt 0:00:00]} cxd4 {[%emt 0:00:00]} 4. Qxd4 {[%emt 0:00:00]} Nf6 {[%emt 0:00:30]} 5. Nc3 {[%emt 0:00:30]} Nc6 {[%emt 0:00:30]} 6. Qa4 {[%emt 0:00:00]} d6 {[%emt 0:00:00]} 7. e5 {[%emt 0:00:00]} dxe5 {[%emt 0:00:00]} 8. Nxe5 {[%emt 0:00:00]} Bd7 {[%emt 0:00:00]} 9. Nxd7 {[%emt 0:00:00]} Qxd7 {[%emt 0:00:00]} 10. Be3 {[%emt 0:00:30]} Bg7 {[%emt 0:00:00]} 11. Rd1 {[%emt 0:00:30]} Qc8 {[%emt 0:00:00]} 12. Be2 {[%emt 0:00:30]} O-O {[%emt 0:00:00]} 13. O-O {[%emt 0:00:00]} a6 {[%emt 0:01:00]} 14. Qb3 {[%emt 0:01:00]} Rb8 {[%emt 0:38:30]} 15. a4 {[%emt 0:22:30]} Nd7 {[%emt 0:18:30]} 16. Nd5 {[%emt 0:09:30]} e6 {[%emt 0:03:30]} 17. Nb6 {[%emt 0:10:30]} Nxb6 {[%emt 0:03:30]} 18. Bxb6 {[%emt 0:00:30]} Be5 {[%emt 0:00:30]} 19. Qa3 {[%emt 0:20:30]} Bc7 {[%emt 0:00:30]} 20. Qc5 {[%emt 0:00:30]} Bxb6 {[%emt 0:06:30]} 21. Qxb6 {[%emt 0:00:30]} Ne5 {[%emt 0:01:30]} 22. c3 {[%emt 0:02:30]} Nd7 {[%emt 0:01:30]} 23. Qd6 {[%emt 0:04:30]} Rd8 {[%emt 0:00:00]} 24. a5 {[%emt 0:00:30]} Nf6 {[%emt 0:18:14]} 25. Qxd8+ {[%emt 0:15:58]} Qxd8 {[%emt 0:00:00]} 26. Rxd8+ {[%emt 0:00:30]} Rxd8 {[%emt 0:00:00]} 27. Rd1 {[%emt 0:00:30]} Rb8 {[%emt 0:00:00]} 28. Rd6 {[%emt 0:00:30]} Kf8 {[%emt 0:00:00]} 29. Bf3 {[%emt 0:00:30]} Ke7 {[%emt 0:00:14]} 30. Rb6 {[%emt 0:00:30]} Nd5 {[%emt 0:00:30]} 31. Bxd5 {[%emt 0:00:30]} exd5 {[%emt 0:00:30]} 32. Kf1 {[%emt 0:00:30]} Kd7 {[%emt 0:00:30]} 33. Ke2 {[%emt 0:00:30]} Re8+ {[%emt 0:00:30]} 34. Kd3 {[%emt 0:00:30]} Kc7 {[%emt 0:00:30]} 35. Rf6 {[%emt 0:00:30]} Re7 {[%emt 0:00:30]} 36. Kd4 {[%emt 0:00:30]} Rd7 {[%emt 0:00:30]} 37. Kc5 {[%emt 0:00:30]} Kc8 {[%emt 0:00:13]} 38. b4 {[%emt 0:06:16]} Kc7 {[%emt 0:00:06]} 39. h4 {[%emt 0:00:00]} Kc8 {[%emt 0:00:14]} 40. Rd6 {[%emt 0:00:28]} Rc7+ {[%emt 0:00:06]} 41. Kxd5 {[%emt 0:01:11]} Rxc3 {[%emt 0:00:02]} 42. Rf6 {[%emt 0:00:00]} Rc7 {[%emt 0:00:55]} 1/2-1/2

[Event "Turkish Second League 2019"]
[Site "Konya"]
[Date "2019.07.25"]
[Round "5"]
[White "Kisadere, Kutay"]
[Black "Celikel, Fatih"]
[Result "1/2-1/2"]
[ECO "B09"]
[WhiteElo "1770"]
[BlackElo "1868"]
[Annotator "NA"]
[PlyCount "136"]
[EventDate "2019.07.22"]
[EventType "team-tourn"]
[EventCountry "TUR"]
[SourceTitle "playchess.com"]
[Source "ChessBase"]
[SourceQuality "1"]
[TimeControl "5400+30"]

1. e4 {[%emt 0:00:30]} d6 {[%emt 0:00:30]} 2. d4 {[%emt 0:00:30]} Nf6 {[%emt 0:00:00]} 3. Nc3 {[%emt 0:00:00]} g6 {[%emt 0:00:00]} 4. f4 {[%emt 0:00:00]} Bg7 {[%emt 0:00:30]} 5. Nf3 {[%emt 0:00:00]} O-O {[%emt 0:00:30]} 6. Be3 {[%emt 0:01:00]} a6 {[%emt 0:06:30]} 7. e5 {[%emt 0:15:30]} Ng4 {[%emt 0:08:30]} 8. Bg1 {[%emt 0:02:30]} c5 {[%emt 0:08:30]} 9. h3 {[%emt 0:13:30]} cxd4 {[%emt 0:00:30]} 10. Bxd4 {[%emt 0:14:30]} dxe5 {[%emt 0:02:30]} 11. fxe5 {[%emt 0:04:30]} Nh6 {[%emt 0:01:30]} 12. Ne4 {[%emt 0:05:30]} Nc6 {[%emt 0:04:30]} 13. Bc3 {[%emt 0:16:30]} Qc7 {[%emt 0:03:30]} 14. Qc1 {[%emt 0:01:30]} b5 {[%emt 0:10:30]} 15. a3 {[%emt 0:07:51]} Rd8 {[%emt 0:05:30]} 16. Bd3 {[%emt 0:01:50]} Nf5 {[%emt 0:01:30]} 17. O-O {[%emt 0:03:20]} Nxe5 {[%emt 0:02:30]} 18. Nxe5 {[%emt 0:07:01]} Bxe5 {[%emt 0:00:30]} 19. Bxe5 {[%emt 0:00:00]} Qxe5 {[%emt 0:00:30]} 20. Qe1 {[%emt 0:01:13]} Bb7 {[%emt 0:05:30]} 21. Nc3 {[%emt 0:01:54]} Qd4+ {[%emt 0:01:30]} 22. Qf2 {[%emt 0:00:02]} Qxf2+ {[%emt 0:03:30]} 23. Rxf2 {[%emt 0:00:01]} Nd6 {[%emt 0:00:30]} 24. Re1 {[%emt 0:00:26]} e6 {[%emt 0:00:30]} 25. Rf4 {[%emt 0:00:38]} Rac8 {[%emt 0:01:30]} 26. a4 {[%emt 0:01:42]} Rc5 {[%emt 0:00:30]} 27. axb5 {[%emt 0:00:19]} axb5 {[%emt 0:00:30]} 28. Rb4 {[%emt 0:00:33]} Bc6 {[%emt 0:00:30]} 29. Ra1 {[%emt 0:00:37]} Rg5 {[%emt 0:00:30]} 30. Bf1 {[%emt 0:00:34]} Nc4 {[%emt 0:01:30]} 31. Rd1 {[%emt 0:00:55]} Ra8 {[%emt 0:03:30]} 32. Kf2 {[%emt 0:00:26]} Rf5+ {[%emt 0:00:30]} 33. Ke2 {[%emt 0:00:29]} Rc8 {[%emt 0:04:30]} 34. g4 {[%emt 0:00:32]} Re5+ {[%emt 0:00:30]} 35. Kf2 {[%emt 0:00:01]} Be8 {[%emt 0:03:30]} 36. Bxc4 {[%emt 0:00:25]} bxc4 {[%emt 0:00:30]} 37. Rd4 {[%emt 0:00:32]} Rec5 {[%emt 0:00:51]} 38. Ne4 {[%emt 0:00:58]} R5c7 {[%emt 0:03:54]} 39. Nd6 {[%emt 0:00:32]} Rd7 {[%emt 0:03:06]} 40. Nxc8 {[%emt 0:00:20]} Rxd4 {[%emt 0:00:40]} 41. Ke3 {[%emt 0:00:01]} e5 {[%emt 0:00:12]} 42. Nb6 {[%emt 0:00:16]} f5 {[%emt 0:02:17]} 43. gxf5 {[%emt 0:00:11]} gxf5 {[%emt 0:00:00]} 44. Rxc4 {[%emt 0:00:35]} f4+ {[%emt 0:00:14]} 45. Kf2 {[%emt 0:00:47]} Rd2+ {[%emt 0:01:39]} 46. Ke1 {[%emt 0:00:01]} Rh2 {[%emt 0:00:55]} 47. Rc8 {[%emt 0:00:17]} Kf7 {[%emt 0:00:51]} 48. Nc4 {[%emt 0:00:02]} Rh1+ {[%emt 0:02:15]} 49. Kf2 {[%emt 0:00:14]} Ke7 {[%emt 0:03:46]} 50. Nxe5 {[%emt 0:00:15]} Rxh3 {[%emt 0:00:00]} 51. Nd3 {[%emt 0:01:10]} Bh5 {[%emt 0:02:07]} 52. Rc7+ {[%emt 0:01:06]} Kf6 {[%emt 0:00:39]} 53. Rxh7 {[%emt 0:00:08]} Kf5 {[%emt 0:02:36]} 54. Rg7 {[%emt 0:00:53]} f3 {[%emt 0:01:29]} 55. Rc7 {[%emt 0:01:44]} Rh2+ {[%emt 0:00:46]} 56. Kf1 {[%emt 0:00:02]} Rh1+ {[%emt 0:01:20]} 57. Kf2 {[%emt 0:00:01]} Rh2+ {[%emt 0:00:13]} 58. Kf1 {[%emt 0:00:21]} Be8 {[%emt 0:00:30]} 59. b3 {[%emt 0:01:06]} Bh5 {[%emt 0:00:29]} 60. b4 {[%emt 0:00:42]} Bg4 {[%emt 0:00:05]} 61. Nf2 {[%emt 0:00:01]} Bh3+ {[%emt 0:01:04]} 62. Nxh3 {[%emt 0:00:08]} Rxh3 {[%emt 0:00:00]} 63. Kf2 {[%emt 0:00:15]} Ke4 {[%emt 0:00:00]} 64. Re7+ {[%emt 0:01:02]} Kd4 {[%emt 0:00:11]} 65. Rc7 {[%emt 0:01:22]} Ke4 {[%emt 0:00:13]} 66. Rc4+ {[%emt 0:00:42]} Kd5 {[%emt 0:00:04]} 67. Rc5+ {[%emt 0:00:00]} Ke4 {[%emt 0:00:09]} 68. Rc4+ {[%emt 0:00:56]} Kd5 {[%emt 0:00:05]} 1/2-1/2

[Event "Turkish Second League 2019"]
[Site "Konya"]
[Date "2019.07.25"]
[Round "5"]
[White "Alaoglu, Niyazi Bekirhan"]
[Black "Kayan, Veli"]
[Result "0-1"]
[ECO "A45"]
[WhiteElo "1769"]
[BlackElo "1863"]
[Annotator "NA"]
[PlyCount "90"]
[EventDate "2019.07.22"]
[EventType "team-tourn"]
[EventCountry "TUR"]
[SourceTitle "playchess.com"]
[Source "ChessBase"]
[SourceQuality "1"]
[TimeControl "5400+30"]

1. d4 {[%emt 0:00:30]} Nf6 {[%emt 0:00:30]} 2. Bg5 {[%emt 0:00:00]} c6 {[%emt 0:01:30]} 3. c3 {[%emt 0:02:00]} Qa5 {[%emt 0:00:30]} 4. Bxf6 {[%emt 0:03:30]} gxf6 {[%emt 0:00:30]} 5. e4 {[%emt 0:06:30]} d5 {[%emt 0:05:30]} 6. exd5 {[%emt 0:04:30]} Qxd5 {[%emt 0:00:30]} 7. Qf3 {[%emt 0:02:30]} Qg5 {[%emt 0:00:30]} 8. Qe3 {[%emt 0:01:30]} Qg6 {[%emt 0:01:30]} 9. f4 {[%emt 0:05:30]} Be6 {[%emt 0:02:30]} 10. Nd2 {[%emt 0:15:30]} Nd7 {[%emt 0:02:30]} 11. Ngf3 {[%emt 0:04:30]} Qc2 {[%emt 0:03:30]} 12. Bc4 {[%emt 0:06:30]} Bxc4 {[%emt 0:01:30]} 13. Nxc4 {[%emt 0:00:00]} e6 {[%emt 0:01:30]} 14. O-O {[%emt 0:04:00]} O-O-O {[%emt 0:01:30]} 15. Rf2 {[%emt 0:01:30]} Qf5 {[%emt 0:00:30]} 16. b4 {[%emt 0:02:30]} Qd5 {[%emt 0:01:30]} 17. Qd3 {[%emt 0:10:30]} h5 {[%emt 0:10:30]} 18. a4 {[%emt 0:04:30]} Bh6 {[%emt 0:01:30]} 19. g3 {[%emt 0:03:30]} Kb8 {[%emt 0:01:30]} 20. Ne3 {[%emt 0:04:31]} Qd6 {[%emt 0:01:30]} 21. c4 {[%emt 0:00:30]} f5 {[%emt 0:01:30]} 22. d5 {[%emt 0:02:30]} cxd5 {[%emt 0:01:30]} 23. c5 {[%emt 0:00:23]} Qc7 {[%emt 0:03:30]} 24. Nd4 {[%emt 0:00:50]} h4 {[%emt 0:05:30]} 25. Nb5 {[%emt 0:03:56]} Qc6 {[%emt 0:00:30]} 26. Nd4 {[%emt 0:00:57]} Qc8 {[%emt 0:01:30]} 27. c6 {[%emt 0:01:26]} hxg3 {[%emt 0:01:30]} 28. Rc2 {[%emt 0:01:44]} Rdg8 {[%emt 0:13:30]} 29. cxd7 {[%emt 0:04:03]} gxh2+ {[%emt 0:00:30]} 30. Kh1 {[%emt 0:00:05]} Qxd7 {[%emt 0:00:00]} 31. Ng2 {[%emt 0:01:08]} Rg4 {[%emt 0:02:00]} 32. Qe3 {[%emt 0:02:52]} Bg7 {[%emt 0:01:30]} 33. Nb5 {[%emt 0:00:45]} d4 {[%emt 0:00:30]} 34. Qd3 {[%emt 0:01:08]} a6 {[%emt 0:01:30]} 35. Na3 {[%emt 0:00:20]} e5 {[%emt 0:01:30]} 36. fxe5 {[%emt 0:00:24]} Bxe5 {[%emt 0:00:30]} 37. Nc4 {[%emt 0:00:37]} Bc7 {[%emt 0:00:30]} 38. Rd1 {[%emt 0:00:38]} Rhg8 {[%emt 0:00:30]} 39. Rf1 {[%emt 0:00:40]} Qd5 {[%emt 0:01:30]} 40. Qf3 {[%emt 0:00:23]} Qe4 {[%emt 0:04:30]} 41. Re2 {[%emt 0:00:26]} Qxf3 {[%emt 0:00:30]} 42. Rxf3 {[%emt 0:00:35]} d3 {[%emt 0:00:30]} 43. Rd2 {[%emt 0:00:11]} Rxc4 {[%emt 0:00:30]} 44. Rfxd3 {[%emt 0:00:02]} Rxb4 {[%emt 0:00:30]} 45. Rd5 {[%emt 0:00:18]} f4 {[%emt 0:00:30]} 0-1

[Event "Turkish Second League 2019"]
[Site "Konya"]
[Date "2019.07.25"]
[Round "5"]
[White "Demirci, Fatih"]
[Black "Acar, Cengiz Can"]
[Result "0-1"]
[ECO "B01"]
[WhiteElo "1763"]
[BlackElo "1756"]
[Annotator "NA"]
[PlyCount "38"]
[EventDate "2019.07.22"]
[EventType "team-tourn"]
[EventCountry "TUR"]
[SourceTitle "playchess.com"]
[Source "ChessBase"]
[SourceQuality "1"]
[TimeControl "5400+30"]

1. e4 {[%emt 0:00:30]} d5 {[%emt 0:00:30]} 2. exd5 {[%emt 0:00:30]} Qxd5 {[%emt 0:00:30]} 3. Nc3 {[%emt 0:00:30]} Qd6 {[%emt 0:00:00]} 4. d4 {[%emt 0:01:30]} c6 {[%emt 0:00:00]} 5. Bc4 {[%emt 0:02:30]} Nf6 {[%emt 0:00:30]} 6. Nge2 {[%emt 0:01:30]} Bg4 {[%emt 0:03:30]} 7. Qd3 {[%emt 0:05:30]} Nbd7 {[%emt 0:02:30]} 8. Bf4 {[%emt 0:03:30]} Qb4 {[%emt 0:03:30]} 9. O-O {[%emt 0:02:30]} e6 {[%emt 0:01:30]} 10. Rfe1 {[%emt 0:09:30]} Bf5 {[%emt 0:02:30]} 11. Qe3 {[%emt 0:09:30]} Qxc4 {[%emt 0:00:30]} 12. b3 {[%emt 0:00:30]} Qb4 {[%emt 0:02:30]} 13. Ng3 {[%emt 0:01:30]} Bxc2 {[%emt 0:02:30]} 14. Rac1 {[%emt 0:01:30]} Bg6 {[%emt 0:00:30]} 15. a3 {[%emt 0:04:30]} Qxa3 {[%emt 0:03:30]} 16. d5 {[%emt 0:03:30]} Bc5 {[%emt 0:09:30]} 17. Qf3 {[%emt 0:00:00]} O-O {[%emt 0:00:30]} 18. dxe6 {[%emt 0:03:00]} fxe6 {[%emt 0:00:30]} 19. Ra1 {[%emt 0:00:30]} Qxb3 {[%emt 0:00:00]} 0-1

[Event "Turkish Second League 2019"]
[Site "Konya"]
[Date "2019.07.25"]
[Round "5"]
[White "Zuberoglu, Ibrahim Berk"]
[Black "Danaci, Ege"]
[Result "1-0"]
[ECO "A13"]
[WhiteElo "1737"]
[BlackElo "1976"]
[Annotator "NA"]
[PlyCount "131"]
[EventDate "2019.07.22"]
[EventType "team-tourn"]
[EventCountry "TUR"]
[SourceTitle "playchess.com"]
[Source "ChessBase"]
[SourceQuality "1"]
[TimeControl "5400+30"]

1. Nf3 {[%emt 0:00:30]} Nf6 {[%emt 0:00:30]} 2. g3 {[%emt 0:00:30]} e6 {[%emt 0:00:30]} 3. Bg2 {[%emt 0:00:30]} d5 {[%emt 0:00:30]} 4. c4 {[%emt 0:00:30]} dxc4 {[%emt 0:02:30]} 5. a4 {[%emt 0:06:30]} Nc6 {[%emt 0:05:30]} 6. a5 {[%emt 0:08:30]} Bb4 {[%emt 0:16:30]} 7. a6 {[%emt 0:21:30]} O-O {[%emt 0:04:30]} 8. O-O {[%emt 0:02:30]} Nd5 {[%emt 0:11:30]} 9. Qc2 {[%emt 0:12:30]} b5 {[%emt 0:07:30]} 10. b3 {[%emt 0:03:30]} cxb3 {[%emt 0:04:30]} 11. Qxb3 {[%emt 0:26:45]} Rb8 {[%emt 0:04:30]} 12. Bb2 {[%emt 0:05:55]} Na5 {[%emt 0:02:30]} 13. Qc2 {[%emt 0:00:55]} Nc4 {[%emt 0:00:30]} 14. Ne5 {[%emt 0:01:18]} Nxe5 {[%emt 0:04:30]} 15. Bxe5 {[%emt 0:00:03]} Be7 {[%emt 0:00:30]} 16. e4 {[%emt 0:03:12]} Bf6 {[%emt 0:00:30]} 17. Bxf6 {[%emt 0:01:17]} Qxf6 {[%emt 0:00:30]} 18. Ra5 {[%emt 0:00:53]} Nb4 {[%emt 0:02:30]} 19. Qxc7 {[%emt 0:00:07]} Bxa6 {[%emt 0:03:30]} 20. Qc5 {[%emt 0:01:23]} Qb2 {[%emt 0:00:30]} 21. Nc3 {[%emt 0:00:02]} Rfc8 {[%emt 0:15:10]} 22. Qe3 {[%emt 0:00:02]} Qc2 {[%emt 0:00:38]} 23. e5 {[%emt 0:02:38]} Rb6 {[%emt 0:02:14]} 24. Be4 {[%emt 0:00:00]} Qb3 {[%emt 0:01:39]} 25. Rb1 {[%emt 0:00:27]} Qc4 {[%emt 0:00:02]} 26. Ne2 {[%emt 0:00:13]} Nd5 {[%emt 0:03:27]} 27. Qf3 {[%emt 0:00:02]} b4 {[%emt 0:00:07]} 28. d3 {[%emt 0:00:50]} Qc7 {[%emt 0:00:44]} 29. Bxd5 {[%emt 0:00:44]} exd5 {[%emt 0:00:08]} 30. Nf4 {[%emt 0:00:20]} Qxe5 {[%emt 0:01:58]} 31. Nxd5 {[%emt 0:00:42]} Rbc6 {[%emt 0:03:12]} 32. Kg2 {[%emt 0:00:27]} Bb7 {[%emt 0:01:52]} 33. Rxa7 {[%emt 0:00:37]} R6c7 {[%emt 0:00:43]} 34. Ra5 {[%emt 0:00:28]} Rc5 {[%emt 0:00:26]} 35. Rxc5 {[%emt 0:00:54]} Rxc5 {[%emt 0:00:01]} 36. Nf6+ {[%emt 0:00:09]} gxf6 {[%emt 0:00:43]} 37. Qxb7 {[%emt 0:00:30]} Rb5 {[%emt 0:00:06]} 38. Qc8+ {[%emt 0:00:36]} Kg7 {[%emt 0:00:30]} 39. Qg4+ {[%emt 0:00:00]} Qg5 {[%emt 0:00:01]} 40. Rxb4 {[%emt 0:00:15]} Rd5 {[%emt 0:01:32]} 41. Qc8 {[%emt 0:00:57]} Rc5 {[%emt 0:00:26]} 42. Qg4 {[%emt 0:00:42]} Rd5 {[%emt 0:00:09]} 43. Qf3 {[%emt 0:00:24]} h5 {[%emt 0:00:35]} 44. h4 {[%emt 0:00:40]} Qf5 {[%emt 0:00:08]} 45. Qxf5 {[%emt 0:00:47]} Rxf5 {[%emt 0:00:30]} 46. Rf4 {[%emt 0:00:30]} Rd5 {[%emt 0:00:30]} 47. d4 {[%emt 0:00:30]} f5 {[%emt 0:00:30]} 48. Kf3 {[%emt 0:00:30]} Kf6 {[%emt 0:00:30]} 49. Ke3 {[%emt 0:00:30]} Ra5 {[%emt 0:00:30]} 50. Kd3 {[%emt 0:00:30]} Ra1 {[%emt 0:00:30]} 51. Kc4 {[%emt 0:00:30]} Ra3 {[%emt 0:00:30]} 52. Kb4 {[%emt 0:00:30]} Rd3 {[%emt 0:00:30]} 53. Kc4 {[%emt 0:00:30]} Ra3 {[%emt 0:00:30]} 54. Kb4 {[%emt 0:00:30]} Rd3 {[%emt 0:00:30]} 55. Kc5 {[%emt 0:00:30]} Ke6 {[%emt 0:00:30]} 56. Kc4 {[%emt 0:00:30]} Ra3 {[%emt 0:00:30]} 57. d5+ {[%emt 0:00:30]} Ke5 {[%emt 0:00:30]} 58. Kc5 {[%emt 0:00:30]} Rc3+ {[%emt 0:00:30]} 59. Rc4 {[%emt 0:00:30]} Rd3 {[%emt 0:00:30]} 60. f4+ {[%emt 0:00:30]} Kf6 {[%emt 0:00:00]} 61. Kd6 {[%emt 0:00:06]} Rxg3 {[%emt 0:00:00]} 62. Kd7 {[%emt 0:00:31]} Rd3 {[%emt 0:00:00]} 63. Rc6+ {[%emt 0:00:43]} Kg7 {[%emt 0:00:00]} 64. d6 {[%emt 0:00:00]} f6 {[%emt 0:02:11]} 65. Kc8 {[%emt 0:00:47]} Kf7 {[%emt 0:00:58]} 66. Rc7+ {[%emt 0:00:23]} 1-0

[Event "Turkish Second League 2019"]
[Site "Konya"]
[Date "2019.07.25"]
[Round "5"]
[White "Guney, Gamze Nur"]
[Black "Ozsayin, Elif"]
[Result "0-1"]
[ECO "C41"]
[WhiteElo "1735"]
[BlackElo "1642"]
[Annotator "NA"]
[PlyCount "106"]
[EventDate "2019.07.22"]
[EventType "team-tourn"]
[EventCountry "TUR"]
[SourceTitle "playchess.com"]
[Source "ChessBase"]
[SourceQuality "1"]
[TimeControl "5400+30"]

1. e4 {[%emt 0:00:30]} e5 {[%emt 0:02:30]} 2. Nf3 {[%emt 0:00:00]} d6 {[%emt 0:00:30]} 3. d4 {[%emt 0:00:00]} exd4 {[%emt 0:01:30]} 4. Nxd4 {[%emt 0:00:00]} Nf6 {[%emt 0:02:30]} 5. Nc3 {[%emt 0:04:00]} g6 {[%emt 0:06:30]} 6. Bg5 {[%emt 0:05:30]} Bg7 {[%emt 0:00:30]} 7. Be2 {[%emt 0:00:30]} Nbd7 {[%emt 0:07:30]} 8. Qd2 {[%emt 0:05:30]} Nc5 {[%emt 0:06:30]} 9. f3 {[%emt 0:09:30]} h6 {[%emt 0:04:30]} 10. Be3 {[%emt 0:04:30]} Be6 {[%emt 0:13:30]} 11. O-O-O {[%emt 0:19:30]} Qe7 {[%emt 0:03:30]} 12. g4 {[%emt 0:09:30]} O-O-O {[%emt 0:06:30]} 13. h4 {[%emt 0:04:30]} c6 {[%emt 0:08:30]} 14. Rhg1 {[%emt 0:13:30]} Ne8 {[%emt 0:15:28]} 15. Nxc6 {[%emt 0:12:27]} bxc6 {[%emt 0:01:21]} 16. Bxc5 {[%emt 0:00:02]} dxc5 {[%emt 0:08:15]} 17. Ba6+ {[%emt 0:00:30]} Kc7 {[%emt 0:00:00]} 18. Nb5+ {[%emt 0:00:00]} Kb6 {[%emt 0:00:00]} 19. Qxd8+ {[%emt 0:01:07]} Qxd8 {[%emt 0:00:16]} 20. Rxd8 {[%emt 0:00:00]} cxb5 {[%emt 0:01:23]} 21. Bc8 {[%emt 0:01:29]} Bf6 {[%emt 0:01:14]} 22. Bxe6 {[%emt 0:01:11]} Bxd8 {[%emt 0:00:53]} 23. Bxf7 {[%emt 0:00:01]} g5 {[%emt 0:01:21]} 24. Rd1 {[%emt 0:02:40]} Bc7 {[%emt 0:00:49]} 25. h5 {[%emt 0:01:17]} Nd6 {[%emt 0:01:38]} 26. Be6 {[%emt 0:02:54]} Rf8 {[%emt 0:01:29]} 27. Bd5 {[%emt 0:01:49]} Nc8 {[%emt 0:01:53]} 28. Be6 {[%emt 0:00:52]} Ne7 {[%emt 0:01:09]} 29. Rd7 {[%emt 0:00:21]} Nc6 {[%emt 0:00:52]} 30. Bf5 {[%emt 0:00:57]} Rd8 {[%emt 0:00:10]} 31. Rxd8 {[%emt 0:00:06]} Bxd8 {[%emt 0:00:14]} 32. c3 {[%emt 0:00:41]} Ne5 {[%emt 0:00:29]} 33. Kd2 {[%emt 0:00:30]} Nxf3+ {[%emt 0:00:34]} 34. Ke3 {[%emt 0:00:06]} Ne5 {[%emt 0:00:00]} 35. b3 {[%emt 0:00:49]} Bf6 {[%emt 0:00:47]} 36. a3 {[%emt 0:00:32]} a5 {[%emt 0:00:23]} 37. Be6 {[%emt 0:00:30]} a4 {[%emt 0:01:23]} 38. bxa4 {[%emt 0:00:37]} Nc4+ {[%emt 0:00:42]} 39. Kd3 {[%emt 0:00:22]} Nb2+ {[%emt 0:00:14]} 40. Kc2 {[%emt 0:00:43]} Nxa4 {[%emt 0:00:10]} 41. c4 {[%emt 0:00:00]} b4 {[%emt 0:00:44]} 42. Kb3 {[%emt 0:00:58]} Ka5 {[%emt 0:00:07]} 43. Bd7 {[%emt 0:00:21]} Nc3 {[%emt 0:00:42]} 44. Bf5 {[%emt 0:00:29]} Ne2 {[%emt 0:00:26]} 45. axb4+ {[%emt 0:00:35]} cxb4 {[%emt 0:00:09]} 46. Bd7 {[%emt 0:00:11]} Nd4+ {[%emt 0:00:18]} 47. Ka2 {[%emt 0:00:24]} b3+ {[%emt 0:00:20]} 48. Ka3 {[%emt 0:00:23]} Be7+ {[%emt 0:00:42]} 49. Kb2 {[%emt 0:00:12]} Kb4 {[%emt 0:00:00]} 50. Bb5 {[%emt 0:01:20]} Bf6 {[%emt 0:00:06]} 51. Ba6 {[%emt 0:00:22]} Ne2+ {[%emt 0:00:32]} 52. Kb1 {[%emt 0:00:20]} Ka3 {[%emt 0:00:21]} 53. c5 {[%emt 0:00:51]} Nc3+ {[%emt 0:00:08]} 0-1